bitfinex/quotes_ETHUSD_20250725
["timestamp","ask_amount","ask_price","bid_price","bid_amount"]
[1753433948224,3.64430702,3668.1,3668.0,0.24798007]
[1753433948422,4.45330702,3668.1,3668.0,0.24798007]
[1753433948659,7.45330702,3668.1,3668.0,0.24800095]
[1753433948957,7.45330702,3668.1,3668.0,1e-08]
[1753433949324,11.88130702,3668.1,3668.0,1e-08]
[1753433950222,7.45330702,3668.1,3668.0,1e-08]
[1753433950428,7.45330702,3668.1,3667.4,1e-08]
[1753433950429,2.72665303,3667.5,3667.4,1e-08]
[1753433950739,6.63235303,3667.5,3667.4,1e-08]
[1753433951042,6.55432231,3666.6,3666.5,1e-08]
[1753433951225,3.55469428,3666.1,3666.0,1e-08]
[1753433951541,6.48034077,3665.5,3664.6,0.001]
[1753433951742,10.90734077,3665.5,3664.6,0.001]
[1753433951942,3.50623632,3664.7,3664.6,0.001]
[1753433952323,7.29353632,3664.7,3664.6,0.001]
[1753433952923,2.72790787,3665.9,3664.6,0.9233]
[1753433953123,0.1368,3665.1,3664.6,0.9233]
[1753433953324,4.427,3665.0,3664.7,0.9223]
[1753433953757,7.15551809,3665.0,3664.7,0.9223]
[1753433953931,0.8318,3664.9,3664.6,0.001]
[1753433954133,2.86553632,3664.7,3664.6,0.001]
[1753433954338,7.29253632,3664.7,3664.6,0.001]
[1753433954532,7.72653632,3664.7,3664.6,0.001]
[1753433954758,8.21063632,3664.7,3664.6,0.001]
[1753433956231,2.86553632,3664.7,3664.6,0.001]
[1753433956572,7.77663632,3664.7,3664.6,0.001]
[1753433957373,12.02223632,3664.7,3664.6,0.001]
[1753433957661,11.57923632,3664.7,3664.6,0.001]
[1753433958031,11.09513632,3664.7,3664.6,0.001]
[1753433958226,4.5618,3664.7,3664.6,0.001]
[1753433958476,0.1368,3664.7,3664.6,0.4633]
[1753433958641,0.1368,3664.7,3664.6,0.924]
[1753433958642,4.425,3664.7,3664.6,0.924]
[1753433958844,4.425,3664.7,3664.6,0.001]
[1753433959229,4.425,3664.7,3664.6,0.4633]
[1753433959432,0.1368,3664.8,3664.6,0.924]
[1753433959738,0.1368,3665.3,3664.7,1.71528736]
[1753433959928,4.425,3665.2,3664.8,2.72860493]
[1753433960141,4.425,3665.1,3664.9,3.78838047]
[1753433960337,4.425,3665.1,3665.0,0.923]
[1753433962185,4.425,3665.1,3665.0,3.65151296]
[1753433962378,4.425,3665.1,3665.0,4.38243869]
[1753433963062,4.424,3665.3,3665.1,0.55]
[1753433963279,4.424,3665.4,3665.3,0.55]
[1753433963594,4.423,3665.8,3665.4,2.7282152]
[1753433963791,4.423,3665.8,3665.5,0.923]
[1753433964099,4.423,3665.8,3665.6,0.1368]
[1753433964249,4.423,3665.8,3665.5,0.923]
[1753433964450,4.423,3665.8,3665.5,1.0598]
[1753433964645,4.423,3665.8,3665.6,0.4623]
[1753433964908,4.423,3665.8,3665.6,0.923]
[1753433965242,2.72806634,3665.6,3665.2,1.6977]
[1753433965567,4.422,3665.5,3665.2,1.6977]
[1753433965762,4.422,3665.5,3665.3,0.923]
[1753433965968,4.422,3665.5,3665.3,2.72828961]
[1753433966166,4.422,3665.5,3665.4,0.923]
[1753433967775,4.422,3665.5,3665.2,0.7747]
[1753433968074,4.422,3665.5,3665.2,1.2354]
[1753433968282,4.422,3665.5,3665.3,0.923]
[1753433969080,4.422,3665.5,3665.3,2.72826842]
[1753433969283,4.422,3665.5,3665.4,0.923]
[1753433972844,6.546,3666.5,3665.4,1.36561295]
[1753433973050,7.1454814,3666.4,3665.8,2.72784813]
[1753433973263,2.72760528,3666.3,3665.9,0.4607]
[1753433973475,7.14547455,3666.4,3665.5,3.9860786]
[1753433973790,0.7927,3666.1,3665.1,0.7823]
[1753433973978,4.418,3666.0,3665.1,0.7823]
[1753433974281,4.418,3666.0,3665.4,2.72819496]
[1753433974474,2.72801278,3665.7,3665.4,0.923]
[1753433974673,4.417,3665.6,3665.4,0.923]
[1753433975266,4.417,3665.6,3665.4,1.0598]
[1753433975488,4.417,3665.6,3665.5,0.923]
[1753433975853,4.417,3665.6,3665.4,0.1368]
[1753433976187,4.417,3665.6,3665.1,0.7823]
[1753433976188,4.417,3665.6,3665.3,2.72826047]
[1753433976349,4.417,3665.6,3665.4,0.1368]
[1753433976678,4.417,3665.6,3665.4,1.0598]
[1753433976881,4.417,3665.6,3665.5,0.923]
[1753433977751,4.417,3665.6,3665.5,3.65114077]
[1753433978681,4.417,3665.6,3665.5,3.89941772]
[1753433978884,1.53061796,3667.0,3666.4,2.72744596]
[1753433979084,1.53061796,3667.0,3666.8,2.72717355]
[1753433979256,1.53061796,3667.0,3666.6,0.136]
[1753433979453,5.94561796,3667.0,3666.9,0.923]
[1753433980572,5.94561796,3667.0,3666.9,1.17128237]
[1753433982685,5.94561796,3667.0,3666.9,1.17108414]
[1753433983356,5.94561796,3667.0,3666.9,3.89818332]
[1753433983674,5.94561796,3667.0,3666.9,5.35172621]
[1753433983857,5.94561796,3667.0,3666.9,4.68918332]
[1753433984784,5.94561796,3667.0,3666.9,0.24808414]
[1753433985368,5.94561796,3667.0,3666.9,1.17108414]
[1753433985567,1.53261796,3667.0,3666.9,3.89818332]
[1753433985876,1.53261796,3667.0,3666.9,1.30708414]
[1753433986257,1.53261796,3667.0,3666.9,0.24808414]
[1753433986688,1.66861796,3667.0,3666.9,0.24808414]
[1753433989769,1.53261796,3667.0,3666.9,4.65108332]
[1753433989972,1.53261796,3667.0,3666.9,5.97978724]
[1753433990188,1.53261796,3667.0,3666.9,8.95251625]
[1753433990389,0.002,3667.0,3666.9,8.95251625]
[1753433991793,0.002,3667.0,3666.9,8.40251625]
[1753433992091,0.002,3667.0,3666.9,7.65108332]
[1753433993195,0.002,3667.0,3666.9,1.92398414]
[1753433993399,0.002,3667.0,3666.9,4.65108332]
[1753433993765,0.002,3667.0,3666.9,1.01088414]
[1753433993972,0.002,3667.0,3666.9,0.24808414]
[1753433994792,2.72902481,3667.0,3666.9,0.24808414]
[1753433994997,0.002,3667.0,3666.9,0.24808414]
[1753433995197,1.2819,3667.0,3666.9,0.24808414]
[1753433995691,1.2819,3667.0,3666.9,0.24743425]
[1753433996268,0.002,3667.0,3666.9,0.24743425]
[1753433996499,4.406,3667.0,3666.9,1.16053425]
[1753433998884,4.406,3667.0,3666.9,0.70273425]
[1753433999292,4.406,3667.0,3666.9,3.88763343]
[1753433999499,4.406,3667.0,3666.9,1.16053425]
[1753434000199,4.406,3667.0,3666.9,3.88763343]
[1753434000387,4.406,3667.0,3666.9,4.71863343]
[1753434000388,0.002,3667.0,3666.9,4.71863343]
[1753434000567,0.002,3667.0,3666.9,5.47681838]
[1753434000769,2.72902481,3667.0,3666.2,0.4578]
[1753434000970,2.72747108,3666.4,3666.3,0.24775949]
[1753434001170,8.79857108,3666.4,3666.3,0.24775949]
[1753434001374,8.93457108,3666.4,3666.3,0.24775949]
[1753434001695,5.2889,3666.4,3666.3,0.24775949]
[1753434002004,4.537,3666.4,3666.3,0.24775949]
[1753434002303,4.401,3666.4,3666.3,0.24775949]
[1753434002475,4.401,3666.4,3666.3,0.70305949]
[1753434003575,4.401,3666.4,3666.3,0.24775949]
[1753434003876,4.401,3666.4,3666.1,3.32148933]
[1753434004078,4.401,3666.4,3666.1,1.0491]
[1753434004483,4.401,3666.4,3666.1,0.136]
[1753434004679,4.401,3666.4,3666.1,2.86369342]
[1753434004908,4.401,3666.4,3666.1,3.77679342]
[1753434005128,4.401,3666.4,3666.1,1.0491]
[1753434005275,4.401,3666.4,3666.2,0.9131]
[1753434006110,4.401,3666.4,3666.2,0.4553]
[1753434006415,4.401,3666.4,3665.5,0.7664]
[1753434006416,4.401,3666.4,3666.0,2.72776672]
[1753434006606,4.401,3666.4,3666.0,2.86376672]
[1753434007197,4.401,3666.4,3666.0,0.136]
[1753434007724,4.401,3666.4,3666.2,2.72755585]
[1753434008221,4.401,3666.4,3666.3,3.64064548]
[1753434008834,4.401,3666.4,3666.3,0.9131]
[1753434009332,4.401,3666.4,3666.1,2.72767461]
[1753434009531,4.401,3666.4,3666.3,2.72754548]
[1753434009888,4.401,3666.4,3666.2,3.64070481]
[1753434010220,4.401,3666.4,3666.2,0.9131]
[1753434010403,4.401,3666.4,3666.1,2.72766684]
[1753434010603,4.401,3666.4,3666.2,3.64070865]
[1753434010803,4.401,3666.4,3666.2,3.18540865]
[1753434011004,4.401,3666.4,3666.3,0.4553]
[1753434011218,4.401,3666.4,3666.2,3.18540576]
[1753434012026,4.401,3666.4,3666.0,0.136]
[1753434012525,4.401,3666.4,3666.2,2.72761489]
[1753434013223,4.401,3666.4,3666.3,2.72754548]
[1753434013528,4.401,3666.4,3666.1,2.72764226]
[1753434013840,4.401,3666.4,3666.1,0.9131]
[1753434014291,4.401,3666.4,3666.0,2.8637417]
[1753434014721,4.401,3666.4,3666.1,2.72769198]
[1753434014929,4.401,3666.4,3666.0,0.136]
[1753434015139,5.2299,3666.4,3666.0,0.136]
[1753434015293,5.7041,3666.4,3666.0,0.136]
[1753434015492,8.4315855,3666.4,3666.0,0.136]
[1753434015805,5.7041,3666.4,3666.0,0.136]
[1753434016535,5.2299,3666.4,3666.0,0.136]
[1753434016931,2.72769428,3666.1,3666.0,0.136]
[1753434017131,2.72776868,3666.0,3665.4,0.1368]
[1753434017309,0.136,3665.9,3665.4,0.1368]
[1753434017507,4.395,3665.8,3665.4,0.1368]
[1753434017814,4.395,3665.8,3665.3,0.232019]
[1753434017815,0.6311,3665.7,3665.3,0.232019]
[1753434018207,4.15960792,3665.7,3665.3,0.232019]
[1753434018409,0.4951,3665.6,3665.3,0.232019]
[1753434018744,4.395,3665.5,3665.3,0.232019]
[1753434019348,4.395,3665.5,3665.4,2.7282152]
[1753434019503,4.395,3665.5,3665.4,3.7841152]
[1753434019698,4.395,3665.5,3665.4,4.5967152]
[1753434020348,4.395,3665.5,3665.4,0.1368]
[1753434020706,4.395,3665.5,3665.4,2.8650152]
[1753434020937,0.136,3665.9,3665.8,2.7279175]
[1753434021120,4.394,3665.9,3665.7,0.136]
[1753434021707,4.394,3665.9,3665.7,2.86399073]
[1753434022122,4.394,3665.9,3665.8,2.7279175]
[1753434022536,4.393,3665.9,3665.8,3.6470175]
[1753434023137,4.393,3665.9,3665.8,0.9191]
[1753434023342,4.393,3665.9,3665.7,2.8639421]
[1753434023540,4.393,3665.9,3665.5,2.72814077]
[1753434023721,4.393,3665.9,3665.6,0.1368]
[1753434025150,0.4951,3665.8,3665.3,0.232019]
[1753434025346,1.2877,3665.8,3665.4,0.1368]
[1753434025558,1.2877,3665.8,3665.4,2.86496656]
[1753434025862,0.7926,3665.8,3665.4,2.86496656]
[1753434026148,0.7926,3665.8,3665.6,2.72801454]
[1753434026348,0.7926,3665.8,3665.4,0.1368]
[1753434026349,0.7926,3665.8,3665.5,2.72812007]
[1753434026659,0.7926,3665.8,3665.4,0.5828]
[1753434026859,0.7926,3665.8,3665.3,2.96025182]
[1753434026860,2.72814077,3665.5,3665.3,0.232019]
[1753434027149,8.0573152,3665.4,3665.3,0.232019]
[1753434027321,4.391,3665.4,3665.3,0.232019]
[1753434027912,8.8555152,3665.4,3665.3,0.232019]
[1753434029122,8.99212929,3665.4,3665.3,0.232019]
[1753434029343,2.72805409,3665.7,3665.3,0.232019]
[1753434029651,0.4951,3665.4,3665.3,0.232019]
[1753434030353,3.2233152,3665.4,3665.3,0.232019]
[1753434030653,0.7982,3665.5,3665.3,0.232019]
[1753434031041,3.52634107,3665.5,3665.3,0.232019]
[1753434031255,3.2233152,3665.4,3665.3,0.232019]
[1753434031415,3.6663152,3665.4,3665.3,0.232019]
[1753434032551,0.7982,3665.5,3665.3,0.232019]
[1753434032718,0.002,3665.8,3665.4,0.9191]
[1753434032919,0.002,3665.8,3665.7,2.72799192]
[1753434033423,0.002,3665.8,3665.7,3.64709192]
[1753434034040,0.002,3665.8,3665.7,0.9191]
[1753434034256,0.002,3665.8,3665.7,0.446]
[1753434034553,0.002,3665.8,3665.4,3.20125882]
[1753434034752,0.002,3665.8,3665.3,0.232019]
[1753434034753,0.4971,3665.8,3665.3,0.232019]
[1753434035252,4.388,3665.7,3665.3,0.232019]
[1753434035454,1.3035,3665.6,3665.3,0.232019]
[1753434035831,2.7282152,3665.4,3665.3,0.232019]
[1753434036152,8.0543152,3665.4,3665.3,0.232019]
[1753434036358,8.8378152,3665.4,3665.3,0.232019]
[1753434036854,8.9746152,3665.4,3665.3,0.232019]
[1753434037018,11.9746152,3665.4,3665.3,0.232019]
[1753434037219,3.49053851,3665.1,3665.0,0.001]
[1753434037454,11.01433851,3665.1,3665.0,0.001]
[1753434037649,11.45733851,3665.1,3665.0,0.001]
[1753434037853,11.95243851,3665.1,3665.0,0.001]
[1753434040850,11.50843851,3665.1,3665.0,0.001]
[1753434041447,11.95143851,3665.1,3665.0,0.001]
[1753434045071,11.95143851,3665.1,3665.0,1e-08]
[1753434046729,7.56543851,3665.1,3665.0,1e-08]
[1753434046956,11.95043851,3665.1,3665.0,1e-08]
[1753434047160,11.94943851,3665.1,3665.0,1e-08]
[1753434050188,11.94943851,3665.1,3664.8,1e-08]
[1753434050189,2.72858741,3664.9,3664.8,1e-08]
[1753434050348,6.55541078,3664.6,3664.5,1e-08]
[1753434050543,11.07521078,3664.6,3664.5,1e-08]
[1753434050750,12.00481078,3664.6,3664.5,1e-08]
[1753434052357,26.50481078,3664.6,3664.5,1e-08]
[1753434052755,3.54000867,3664.2,3664.1,1e-08]
[1753434052983,17.61180867,3664.2,3664.1,1e-08]
[1753434053294,2.72940662,3663.8,3662.9,0.9055]
[1753434053450,2.73000273,3663.0,3662.9,0.9055]
[1753434053653,7.24880273,3663.0,3662.9,0.9055]
[1753434053850,4.5188,3663.0,3662.7,1.2386]
[1753434054076,4.5188,3663.0,3662.8,0.9055]
[1753434054275,4.5188,3663.0,3662.9,0.9055]
[1753434054953,7.24880273,3663.0,3662.7,0.7678]
[1753434055164,2.86696394,3662.8,3662.7,0.4708]
[1753434055362,4.5178,3662.8,3662.7,0.4708]
[1753434055563,7.24795179,3662.8,3662.7,0.4708]
[1753434055872,4.5178,3662.8,3662.7,0.4708]
[1753434056079,7.24795179,3662.8,3662.7,0.9055]
[1753434056251,2.73036282,3662.6,3662.4,0.4708]
[1753434056450,4.5178,3662.5,3662.4,0.4347]
[1753434056647,2.73009961,3662.9,3662.4,0.4347]
[1753434056880,0.1368,3662.6,3662.5,0.4347]
[1753434057094,4.5178,3662.6,3662.5,0.4347]
[1753434057297,4.5178,3662.6,3662.3,3.20132044]
[1753434057584,4.5178,3662.6,3662.5,0.9055]
[1753434057754,0.1368,3662.6,3662.5,0.9055]
[1753434057954,4.5178,3662.6,3662.5,0.9055]
[1753434059474,0.1368,3662.6,3662.5,0.9055]
[1753434059663,4.38,3662.6,3662.5,2.04270171]
[1753434059859,2.72958709,3663.6,3662.5,2.04270171]
[1753434060060,0.1368,3663.3,3662.8,2.73008158]
[1753434060393,0.1368,3663.3,3663.1,2.72992202]
[1753434060691,4.379,3663.2,3662.9,0.9055]
[1753434060859,4.379,3663.2,3663.0,0.9055]
[1753434061066,4.379,3663.2,3663.1,0.9055]
[1753434062377,0.1368,3663.3,3663.1,0.4347]
[1753434062697,0.1368,3663.3,3663.2,1.6855]
[1753434063187,4.379,3663.3,3663.2,4.41535367]
[1753434063387,4.379,3663.3,3663.2,1.6855]
[1753434063596,4.379,3663.3,3662.9,0.4708]
[1753434063757,4.379,3663.3,3663.0,0.9055]
[1753434063958,4.379,3663.3,3663.1,0.9055]
[1753434064287,4.379,3663.3,3663.2,0.9055]
[1753434064788,4.379,3663.3,3662.9,0.9055]
[1753434064990,4.379,3663.3,3663.0,0.25412061]
[1753434065197,2.7299251,3663.2,3663.1,0.25412061]
[1753434065360,6.4852251,3663.2,3663.1,0.25412061]
[1753434065561,7.5516251,3663.2,3663.1,0.25412061]
[1753434067109,2.73074822,3662.0,3661.9,0.4708]
[1753434067317,2.73105172,3661.6,3661.4,0.1368]
[1753434067459,4.5138,3661.5,3661.2,1.2855]
[1753434067659,4.377,3661.5,3661.3,3.63671788]
[1753434067900,4.377,3661.5,3661.4,0.9055]
[1753434068489,4.377,3661.5,3661.4,3.63669571]
[1753434068669,4.377,3661.5,3661.4,0.9055]
[1753434068875,0.1368,3661.6,3661.4,3.63669571]
[1753434069085,4.377,3661.5,3661.3,2.73125712]
[1753434069771,4.377,3661.5,3661.4,0.9055]
[1753434071469,0.1368,3661.6,3661.4,0.9055]
[1753434071665,0.1368,3662.1,3661.5,1.8483]
[1753434071887,4.375,3662.0,3661.9,2.73077014]
[1753434072089,4.375,3662.0,3661.9,3.63627014]
[1753434072897,4.375,3662.0,3661.9,4.42517014]
[1753434073061,0.1368,3662.3,3662.2,2.73059909]
[1753434073466,4.5118,3662.3,3662.2,3.63609909]
[1753434073708,4.5118,3662.3,3662.2,0.9055]
[1753434073906,4.5118,3662.3,3662.2,3.63609909]
[1753434074260,0.1368,3662.3,3662.2,3.63609909]
[1753434074490,4.5118,3662.3,3662.2,3.63609909]
[1753434074709,4.5118,3662.3,3662.2,0.9055]
[1753434075567,4.5118,3662.3,3661.9,0.7889]
[1753434075921,4.5118,3662.3,3661.4,0.001]
[1753434075922,2.73095716,3661.8,3661.4,0.001]
[1753434076203,7.10498396,3661.7,3661.4,0.001]
[1753434076402,0.1368,3661.6,3661.4,0.4718]
[1753434076881,0.1368,3661.6,3661.4,0.001]
[1753434077595,2.8678766,3661.6,3661.4,0.001]
[1753434077806,3.49042112,3661.5,3661.4,0.001]
[1753434077978,4.40982112,3661.5,3661.4,0.001]
[1753434078300,7.40982112,3661.5,3661.4,0.001]
[1753434078512,6.49042112,3661.5,3661.4,0.001]
[1753434078666,4.373,3661.5,3661.4,0.476]
[1753434078868,5.1302,3661.5,3660.7,0.001]
[1753434079096,5.1302,3661.5,3660.0,0.1]
[1753434079097,2.73216578,3660.1,3660.0,0.1]
[1753434079278,7.10516578,3660.1,3660.0,0.1]
[1753434079614,4.373,3660.1,3660.0,0.1]
[1753434079786,7.10516578,3660.1,3660.0,0.1]
[1753434080166,4.373,3660.1,3660.0,0.1]
[1753434080390,7.10516578,3660.1,3660.0,0.1]
[1753434080597,4.373,3660.1,3660.0,0.1]
[1753434080768,7.10516578,3660.1,3660.0,0.1]
[1753434080963,4.373,3660.1,3660.0,0.1]
[1753434081270,1.22722669,3660.5,3660.0,0.1]
[1753434081585,2.7320165,3660.3,3660.0,0.1]
[1753434081768,7.10394329,3660.4,3660.0,0.1]
[1753434082095,3.20834329,3660.4,3660.0,0.1]
[1753434082295,4.373,3660.3,3660.0,0.1]
[1753434082469,0.4764,3660.4,3660.0,0.1]
[1753434082670,4.373,3660.3,3660.0,0.1]
[1753434082896,3.20835158,3660.4,3660.0,0.1]
[1753434083102,4.372,3660.3,3660.0,0.1]
[1753434083796,4.36790326,3660.2,3660.0,0.1]
[1753434084208,1.22722669,3660.5,3660.4,2.73194186]
[1753434084369,1.22722669,3660.5,3660.4,3.64524186]
[1753434084572,0.25222669,3660.5,3660.4,4.46474186]
[1753434084768,0.25222669,3660.5,3660.4,4.49206127]
[1753434085107,4.372,3660.8,3660.7,2.73171797]
[1753434085351,4.372,3661.1,3660.8,0.7847]
[1753434085529,6.559,3662.0,3661.9,2.73082279]
[1753434085845,10.931,3662.0,3661.9,3.64412279]
[1753434086631,6.559,3662.0,3661.9,3.64412279]
[1753434086950,1.12065907,3662.7,3661.9,1.62837797]
[1753434087238,4.371,3662.6,3662.0,0.9133]
[1753434087442,4.371,3662.6,3662.1,2.73065257]
[1753434087935,4.371,3662.6,3662.2,0.9133]
[1753434088127,0.1368,3662.5,3662.4,2.73044997]
[1753434088439,0.1368,3662.5,3662.4,3.16874997]
[1753434088635,0.1368,3662.5,3662.4,0.4383]
[1753434088835,0.1368,3662.5,3662.4,0.475]
[1753434089054,0.1368,3662.5,3662.1,2.73066507]
[1753434089217,4.371,3662.6,3662.0,2.73073229]
[1753434089415,4.371,3662.6,3661.8,3.50659445]
[1753434089416,0.1368,3662.2,3662.1,2.73061197]
[1753434089614,4.5078,3662.2,3662.0,3.20573677]
[1753434089945,4.37,3662.4,3662.3,2.73051805]
[1753434090110,4.37,3662.4,3662.3,3.64381805]
[1753434091721,4.37,3662.4,3662.3,0.9133]
[1753434091930,4.37,3662.4,3662.3,3.64382453]
[1753434092846,4.37,3662.4,3662.0,3.93448466]
[1753434093057,4.37,3662.4,3662.0,4.07128466]
[1753434093268,4.37,3662.4,3661.8,0.7757]
[1753434093421,0.1368,3662.3,3661.9,3.64412279]
[1753434093617,0.1368,3662.3,3662.1,2.73064803]
[1753434093814,0.1368,3662.3,3662.2,2.73059909]
[1753434094016,0.1368,3662.3,3662.1,3.64396422]
[1753434094557,0.1368,3662.3,3662.1,0.9133]
[1753434094752,0.1368,3662.3,3662.1,3.16894586]
[1753434094924,0.1368,3662.3,3662.2,3.20559909]
[1753434095119,0.1368,3662.3,3662.2,0.475]
[1753434095817,0.1368,3662.3,3662.1,0.665]
[1753434096441,0.1368,3662.3,3662.1,3.39565494]
[1753434096637,4.37,3662.4,3662.2,0.9133]
[1753434097153,4.37,3662.4,3662.3,0.9133]
[1753434097322,4.37,3662.4,3662.2,0.475]
[1753434097519,4.37,3662.4,3662.1,0.665]
[1753434097721,0.9462,3662.3,3662.1,0.665]
[1753434097953,0.1368,3662.2,3662.1,0.665]
[1753434098423,2.06685907,3662.7,3662.1,1.14]
[1753434098623,0.1368,3662.3,3662.1,1.14]
[1753434098868,4.367,3662.2,3662.1,1.14]
[1753434099030,4.367,3662.2,3662.1,3.87067365]
[1753434099224,4.367,3662.2,3662.1,1.5783]
[1753434099935,4.367,3662.2,3662.1,0.665]
[1753434100142,4.8434,3662.2,3662.1,0.665]
[1753434100347,8.18059909,3662.2,3662.1,0.665]
[1753434100738,9.00749909,3662.2,3662.1,0.665]
[1753434101350,0.1368,3662.2,3662.1,0.665]
[1753434101554,4.5028,3662.2,3662.1,1.14]
[1753434101759,0.1368,3662.2,3662.1,1.14]
[1753434101939,4.5028,3662.2,3662.1,1.14]
[1753434102266,4.5028,3662.2,3662.1,0.665]
[1753434104770,0.1368,3662.2,3662.1,5.12037365]
[1753434104969,4.365,3662.2,3662.1,5.76915675]
[1753434105774,4.365,3662.2,3662.1,5.25711938]
[1753434105951,4.365,3662.2,3662.1,2.3897]
[1753434107247,4.365,3662.2,3662.1,1.4764]
[1753434107641,7.09559909,3662.2,3662.1,0.665]
[1753434107864,8.18559909,3662.2,3662.1,0.665]
[1753434108473,12.00729909,3662.2,3662.1,0.665]
[1753434109068,12.00529909,3662.2,3662.1,0.665]
[1753434109476,3.55692112,3661.5,3661.4,0.001]
[1753434109778,8.05672112,3661.5,3661.4,0.001]
[1753434109980,9.00992112,3661.5,3661.4,0.001]
[1753434111171,12.00992112,3661.5,3661.4,0.001]
[1753434111372,12.00992112,3661.5,3661.4,1e-08]
[1753434111373,18.56692112,3661.5,3661.4,1e-08]
[1753434112693,19.6896716,3661.5,3661.4,1e-08]
[1753434113095,20.2396716,3661.5,3661.4,1e-08]
[1753434113782,20.2386716,3661.5,3661.4,1e-08]
[1753434113975,20.49374767,3661.5,3661.4,1e-08]
[1753434114177,20.70257683,3661.5,3661.4,1e-08]
[1753434115384,20.44750076,3661.5,3661.4,1e-08]
[1753434115965,11.8573716,3661.5,3661.4,1e-08]
[1753434116199,16.6886716,3661.5,3661.4,1e-08]
[1753434116497,14.8573716,3661.5,3661.4,1e-08]
[1753434116689,19.6886716,3661.5,3661.4,1e-08]
[1753434117903,1.12275048,3661.5,3661.4,1e-08]
[1753434118067,1.12275048,3661.5,3661.4,0.96190001]
[1753434118478,5.48475048,3661.5,3661.4,0.96190001]
[1753434119191,5.48475048,3661.5,3661.4,1.33123129]
[1753434119192,1.12275048,3661.5,3661.4,1.33123129]
[1753434119388,5.48375048,3661.5,3661.4,1.71440001]
[1753434119588,1.12275048,3661.5,3661.4,1.71440001]
[1753434119789,5.48375048,3661.5,3661.4,1.71440001]
[1753434120667,1.12275048,3661.5,3661.4,1.71440001]
[1753434120911,1.12275048,3661.5,3661.4,4.89016155]
[1753434121069,5.48375048,3661.5,3661.4,4.9174735]
[1753434121269,5.48375048,3661.5,3661.4,4.89016155]
[1753434121468,1.12275048,3661.5,3661.4,4.89016155]
[1753434121871,5.48375048,3661.5,3661.4,4.89016155]
[1753434122283,5.48375048,3661.5,3661.4,5.44016155]
[1753434122922,1.12275048,3661.5,3661.4,5.44016155]
[1753434123127,5.48275048,3661.5,3661.4,5.44016155]
[1753434124731,5.48275048,3661.5,3661.4,1e-08]
[1753434125110,5.48275048,3661.5,3661.4,0.49830001]
[1753434125430,8.2138716,3661.5,3661.4,1e-08]
[1753434126116,8.6977716,3661.5,3661.4,1e-08]
[1753434126739,9.9879716,3661.5,3661.4,1e-08]
[1753434127052,12.9879716,3661.5,3661.4,1e-08]
[1753434128002,13.1247716,3661.5,3661.4,1e-08]
[1753434128600,8.7647716,3661.5,3661.4,1e-08]
[1753434128848,13.1227716,3661.5,3661.4,1e-08]
[1753434130525,8.7647716,3661.5,3661.4,1e-08]
[1753434130753,12.6534716,3661.5,3661.4,1e-08]
[1753434131056,13.1227716,3661.5,3661.4,1e-08]
[1753434134260,6.9906716,3661.5,3661.4,1e-08]
[1753434134557,11.3486716,3661.5,3661.4,1e-08]
[1753434134866,11.8325716,3661.5,3661.4,1e-08]
[1753434135240,11.3476716,3661.5,3661.4,1e-08]
[1753434136273,6.50781797,3660.7,3660.6,0.001]
[1753434136438,17.42381797,3660.7,3660.6,0.001]
[1753434136781,13.68751797,3660.7,3660.6,0.001]
[1753434136953,17.26841797,3660.7,3660.6,0.001]
[1753434137151,12.42751797,3660.7,3660.6,0.001]
[1753434137339,16.78451797,3660.7,3660.6,0.001]
[1753434139137,17.71391797,3660.7,3660.6,0.001]
[1753434139947,17.26291797,3660.7,3660.6,0.001]
[1753434141455,17.71291797,3660.7,3660.6,0.001]
[1753434141644,18.52631797,3660.7,3660.6,0.001]
[1753434143760,2.73216578,3660.1,3660.0,0.1]
[1753434143958,7.22396578,3660.1,3660.0,0.1]
[1753434144156,5.86896578,3660.1,3660.0,0.1]
[1753434144473,11.15336578,3660.1,3660.0,0.1]
[1753434146090,11.91686578,3660.1,3660.0,0.1]
[1753434149092,7.56186578,3660.1,3660.0,0.1]
[1753434149378,11.91586578,3660.1,3660.0,0.1]
[1753434150183,3.1368,3660.1,3660.0,0.1]
[1753434150481,4.4908,3660.1,3660.0,0.1]
[1753434150779,7.22296578,3660.1,3660.0,0.1]
[1753434151184,8.15236578,3660.1,3660.0,0.1]
[1753434151386,8.97816578,3660.1,3660.0,0.1]
[1753434151555,11.97816578,3660.1,3660.0,0.1]
[1753434153287,0.55,3659.8,3658.4,0.8047]
[1753434153493,2.73325997,3658.7,3657.9,0.8047]
[1753434153792,4.353,3658.6,3658.0,0.9436]
[1753434153969,4.353,3658.5,3657.9,0.8047]
[1753434154164,2.73373428,3658.0,3657.9,0.8047]
[1753434154488,4.353,3658.0,3657.9,1.3001]
[1753434154991,7.08673428,3658.0,3657.9,1.7483]
[1753434155188,4.353,3658.0,3657.2,0.8047]
[1753434155400,2.7340127,3657.7,3657.5,0.4954]
[1753434155597,4.353,3657.6,3657.5,0.4954]
[1753434155989,7.08703324,3657.6,3657.5,0.4954]
[1753434156501,4.353,3657.6,3657.5,0.4954]
[1753434156797,4.353,3657.6,3657.2,0.8047]
[1753434156990,0.13642268,3658.0,3657.3,0.9436]
[1753434157308,2.7344492,3657.1,3656.8,0.7675]
[1753434157517,4.353,3657.0,3656.8,0.7675]
[1753434157669,2.73411746,3657.5,3656.9,0.9436]
[1753434157864,4.353,3657.4,3656.9,0.9436]
[1753434158070,0.7571,3657.8,3657.0,0.9436]
[1753434158334,0.61533253,3658.0,3657.1,0.4954]
[1753434158626,7.353,3657.9,3657.4,2.73417706]